[Event "-chT Youth Countries 2019"]
[Site "Wuerzburg"]
[Date "2019.10.02"]
[Round "2.8"]
[White "von Beckh, Frieda"]
[Black "Haubold, Christian Lucas"]
[Result "0-1"]
[ECO "C44"]
[WhiteElo "1541"]
[BlackElo "1430"]
[Annotator "NA"]
[PlyCount "86"]
[EventDate "2019.10.02"]
[EventType "team-tourn"]
[EventRounds "7"]
[EventCountry "GER"]
[SourceTitle "playchess.com"]
[Source "ChessBase"]
[SourceQuality "1"]
[WhiteTeam "Hessen"]
[BlackTeam "Sachsen-Anhalt"]
[TimeControl "40/5400+30:1800+30"]

1. e4 {[%emt 0:00:00]} e5 {[%emt 0:00:00]} 2. Nf3 {[%emt 0:00:00]} Nc6 {[%emt 0:00:00]} 3. d4 {[%emt 0:00:00]} exd4 {[%emt 0:00:00]} 4. Bc4 {[%emt 0:00:09]} Bc5 {[%emt 0:00:06]} 5. Ng5 {[%emt 0:00:30]} Nh6 {[%emt 0:00:20]} 6. Nxf7 {[%emt 0:01:42]} Nxf7 {[%emt 0:00:11]} 7. Bxf7+ {[%emt 0:00:17]} Kxf7 {[%emt 0:00:09]} 8. Qh5+ {[%emt 0:00:11]} g6 {[%emt 0:00:23]} 9. Qxc5 {[%emt 0:00:13]} d5 {[%emt 0:00:15]} 10. Qxd5+ {[%emt 0:02:18]} Qxd5 {[%emt 0:00:12]} 11. exd5 {[%emt 0:00:10]} Nb4 {[%emt 0:00:48]} 12. Na3 {[%emt 0:02:01]} Nxd5 {[%emt 0:00:16]} 13. O-O {[%emt 0:00:57]} Bf5 {[%emt 0:02:59]} 14. Bf4 {[%emt 0:01:28]} Nxf4 {[%emt 0:01:42]} 15. Rfe1 {[%emt 0:00:51]} a6 {[%emt 0:04:23]} 16. Rad1 {[%emt 0:03:51]} Rhe8 {[%emt 0:02:05]} 17. h3 {[%emt 0:06:22]} Rxe1+ {[%emt 0:00:47]} 18. Rxe1 {[%emt 0:00:17]} Re8 {[%emt 0:00:26]} 19. Rd1 {[%emt 0:01:30]} b5 {[%emt 0:00:44]} 20. c4 {[%emt 0:03:51]} dxc3 {[%emt 0:02:08]} 21. bxc3 {[%emt 0:01:29]} Ne2+ {[%emt 0:00:38]} 22. Kf1 {[%emt 0:01:28]} Nxc3 {[%emt 0:00:12]} 23. Rd2 {[%emt 0:01:11]} Ke7 {[%emt 0:02:34]} 24. Nc2 {[%emt 0:03:49]} Bxc2 {[%emt 0:04:00]} 25. Rxc2 {[%emt 0:00:23]} b4 {[%emt 0:00:43]} 26. a3 {[%emt 0:01:10]} Rd8 {[%emt 0:00:30]} 27. g3 {[%emt 0:01:19]} Rd1+ {[%emt 0:02:21]} 28. Kg2 {[%emt 0:00:22]} c5 {[%emt 0:01:31]} 29. f4 {[%emt 0:03:07]} bxa3 {[%emt 0:02:24]} 30. Rxc3 {[%emt 0:01:57]} a2 {[%emt 0:00:05]} 31. Ra3 {[%emt 0:00:10]} a1=Q {[%emt 0:00:07]} 32. Rxa1 {[%emt 0:00:06]} Rxa1 {[%emt 0:00:08]} 33. Kf3 {[%emt 0:00:06]} Rd1 {[%emt 0:00:16]} 34. Ke4 {[%emt 0:00:19]} c4 {[%emt 0:00:08]} 35. f5 {[%emt 0:00:32]} gxf5+ {[%emt 0:00:17]} 36. Kxf5 {[%emt 0:00:12]} c3 {[%emt 0:00:07]} 37. g4 {[%emt 0:00:20]} c2 {[%emt 0:00:06]} 38. g5 {[%emt 0:00:09]} c1=Q {[%emt 0:00:08]} 39. g6 {[%emt 0:00:04]} Qc5+ {[%emt 0:00:14]} 40. Kf4 {[%emt 0:00:24]} Rd4+ {[%emt 0:00:07]} 41. Kf3 {[%emt 0:30:22]} Qc3+ {[%emt 0:30:09]} 42. Kf2 {[%emt 0:00:05]} Rd2+ {[%emt 0:00:07]} 43. Kf1 {[%emt 0:00:06]} Qc1# {[%emt 0:00:04] normal} 0-1

[Event "-chT Youth Countries 2019"]
[Site "Wuerzburg"]
[Date "2019.10.02"]
[Round "2.8"]
[White "Haug, Mara"]
[Black "Heinze, Sofie"]
[Result "1-0"]
[ECO "C50"]
[WhiteElo "1508"]
[BlackElo "1207"]
[Annotator "NA"]
[PlyCount "54"]
[EventDate "2019.10.02"]
[EventType "team-tourn"]
[EventRounds "7"]
[EventCountry "GER"]
[SourceTitle "playchess.com"]
[Source "ChessBase"]
[SourceQuality "1"]
[WhiteTeam "Baden 2"]
[BlackTeam "SG Brandenburg / Berlin"]
[TimeControl "40/5400+30:1800+30"]

1. e4 {[%emt 0:00:00]} e5 {[%emt 0:00:00]} 2. Nf3 {[%emt 0:00:00]} Nc6 {[%emt 0:00:00]} 3. Bc4 {[%emt 0:00:01]} Bc5 {[%emt 0:00:37]} 4. O-O {[%emt 0:00:08]} Nf6 {[%emt 0:00:45]} 5. d4 {[%emt 0:01:01]} Bxd4 {[%emt 0:02:22]} 6. Nxd4 {[%emt 0:00:08]} Nxd4 {[%emt 0:00:17]} 7. f4 {[%emt 0:00:17]} d6 {[%emt 0:00:35]} 8. fxe5 {[%emt 0:00:08]} dxe5 {[%emt 0:00:14]} 9. Bg5 {[%emt 0:00:09]} Qd6 {[%emt 0:01:05]} 10. Bxf6 {[%emt 0:01:19]} gxf6 {[%emt 0:00:25]} 11. c3 {[%emt 0:03:35]} Ne6 {[%emt 0:00:59]} 12. Qxd6 {[%emt 0:01:26]} cxd6 {[%emt 0:00:16]} 13. Rxf6 {[%emt 0:00:55]} Ke7 {[%emt 0:01:10]} 14. Rf2 {[%emt 0:03:22]} f6 {[%emt 0:00:47]} 15. Nd2 {[%emt 0:03:21]} Rg8 {[%emt 0:01:36]} 16. Raf1 {[%emt 0:03:23]} Rg6 {[%emt 0:00:52]} 17. Nf3 {[%emt 0:02:02]} Nf4 {[%emt 0:00:56]} 18. Kh1 {[%emt 0:11:54]} Be6 {[%emt 0:01:11]} 19. Bxe6 {[%emt 0:03:27]} Kxe6 {[%emt 0:00:19]} 20. Rd1 {[%emt 0:06:28]} Rag8 {[%emt 0:01:42]} 21. Nh4 {[%emt 0:08:19]} Rg4 {[%emt 0:01:35]} 22. g3 {[%emt 0:01:55]} Nh3 {[%emt 0:02:22]} 23. Rfd2 {[%emt 0:05:04]} Ke7 {[%emt 0:02:10]} 24. Nf5+ {[%emt 0:00:45]} Ke6 {[%emt 0:02:09]} 25. Nh6 {[%emt 0:01:00]} Rxg3 {[%emt 0:10:15]} 26. hxg3 {[%emt 0:01:18]} Rxg3 {[%emt 0:00:39]} 27. Rxd6+ {[%emt 0:00:23]} Ke7 {[%emt 0:00:49] normal} 1-0

[Event "-chT Youth Countries 2019"]
[Site "Wuerzburg"]
[Date "2019.10.02"]
[Round "2.8"]
[White "Ulrich, Helena Irene"]
[Black "Vianden, Ella"]
[Result "1-0"]
[ECO "C45"]
[WhiteElo "1355"]
[BlackElo "1306"]
[Annotator "NA"]
[PlyCount "57"]
[EventDate "2019.10.02"]
[EventType "team-tourn"]
[EventRounds "7"]
[EventCountry "GER"]
[SourceTitle "playchess.com"]
[Source "ChessBase"]
[SourceQuality "1"]
[WhiteTeam "Thueringen"]
[BlackTeam "SG Bremen / Niedersachsen"]
[TimeControl "40/5400+30:1800+30"]

1. e4 {[%emt 0:00:00]} e5 {[%emt 0:00:00]} 2. Nf3 {[%emt 0:00:00]} Nc6 {[%emt 0:00:00]} 3. d4 {[%emt 0:00:05]} exd4 {[%emt 0:00:00]} 4. Nxd4 {[%emt 0:00:08]} Bc5 {[%emt 0:00:00]} 5. Be3 {[%emt 0:00:09]} Qf6 {[%emt 0:00:11]} 6. c3 {[%emt 0:00:06]} Nge7 {[%emt 0:00:36]} 7. Bc4 {[%emt 0:00:21]} O-O {[%emt 0:00:53]} 8. O-O {[%emt 0:00:22]} Ne5 {[%emt 0:07:44]} 9. Be2 {[%emt 0:02:18]} d6 {[%emt 0:09:45]} 10. Nd2 {[%emt 0:10:39]} Bd7 {[%emt 0:08:29]} 11. N2b3 {[%emt 0:15:32]} Bb6 {[%emt 0:07:14]} 12. Re1 {[%emt 0:10:45]} Qg6 {[%emt 0:17:20]} 13. Nd2 {[%emt 0:04:01]} Bh3 {[%emt 0:13:17]} 14. g3 {[%emt 0:05:05]} f5 {[%emt 0:12:09]} 15. exf5 {[%emt 0:02:07]} Bxf5 {[%emt 0:03:47]} 16. Nxf5 {[%emt 0:02:39]} Qxf5 {[%emt 0:01:57]} 17. Bxb6 {[%emt 0:01:18]} axb6 {[%emt 0:00:53]} 18. f4 {[%emt 0:02:03]} Nd7 {[%emt 0:04:39]} 19. Bg4 {[%emt 0:02:17]} Qc5+ {[%emt 0:01:32]} 20. Kh1 {[%emt 0:02:04]} Qc6+ {[%emt 0:03:08]} 21. Bf3 {[%emt 0:00:32]} d5 {[%emt 0:02:19]} 22. Rxe7 {[%emt 0:01:31]} Rae8 {[%emt 0:01:38]} 23. Qe2 {[%emt 0:03:40]} Rxe7 {[%emt 0:01:53]} 24. Qxe7 {[%emt 0:00:06]} Qd6 {[%emt 0:00:42]} 25. Qxd6 {[%emt 0:00:21]} cxd6 {[%emt 0:00:08]} 26. Bxd5+ {[%emt 0:00:07]} Kh8 {[%emt 0:00:06]} 27. Re1 {[%emt 0:00:07]} Nc5 {[%emt 0:00:25]} 28. Re7 {[%emt 0:00:47]} Rb8 {[%emt 0:02:35]} 29. Nc4 {[%emt 0:00:33] normal} 1-0

[Event "-chT Youth Countries 2019"]
[Site "Wuerzburg"]
[Date "2019.10.02"]
[Round "2.8"]
[White "Richter, Johanna"]
[Black "Braeutigam, Katerina"]
[Result "0-1"]
[ECO "E18"]
[WhiteElo "942"]
[BlackElo "1630"]
[Annotator "NA"]
[PlyCount "112"]
[EventDate "2019.10.02"]
[EventType "team-tourn"]
[EventRounds "7"]
[EventCountry "GER"]
[SourceTitle "playchess.com"]
[Source "ChessBase"]
[SourceQuality "1"]
[WhiteTeam "Rheinland-Pfalz"]
[BlackTeam "Schleswig-Holstein"]
[TimeControl "40/5400+30:1800+30"]

1. d4 {[%emt 0:00:00]} Nf6 {[%emt 0:00:00]} 2. c4 {[%emt 0:00:00]} e6 {[%emt 0:00:00]} 3. Nf3 {[%emt 0:00:08]} b6 {[%emt 0:00:12]} 4. g3 {[%emt 0:00:17]} Bb7 {[%emt 0:00:48]} 5. Bg2 {[%emt 0:00:16]} Be7 {[%emt 0:00:48]} 6. O-O {[%emt 0:00:51]} O-O {[%emt 0:00:25]} 7. Nc3 {[%emt 0:01:11]} d5 {[%emt 0:03:17]} 8. cxd5 {[%emt 0:01:57]} Nxd5 {[%emt 0:00:34]} 9. Nxd5 {[%emt 0:02:06]} Bxd5 {[%emt 0:00:44]} 10. Bf4 {[%emt 0:01:55]} c5 {[%emt 0:01:26]} 11. e3 {[%emt 0:02:11]} Nc6 {[%emt 0:08:00]} 12. b3 {[%emt 0:03:55]} h6 {[%emt 0:07:50]} 13. Qd3 {[%emt 0:01:27]} Nb4 {[%emt 0:04:44]} 14. Qb1 {[%emt 0:03:34]} Bc6 {[%emt 0:05:29]} 15. a3 {[%emt 0:02:30]} Nd5 {[%emt 0:03:58]} 16. dxc5 {[%emt 0:07:42]} Nxf4 {[%emt 0:15:32]} 17. exf4 {[%emt 0:06:40]} Bxc5 {[%emt 0:01:17]} 18. Rd1 {[%emt 0:05:33]} Qe7 {[%emt 0:05:41]} 19. b4 {[%emt 0:03:32]} Bd6 {[%emt 0:01:04]} 20. Qd3 {[%emt 0:05:02]} Rfd8 {[%emt 0:02:47]} 21. Qc2 {[%emt 0:05:09]} Rac8 {[%emt 0:02:24]} 22. Qb1 {[%emt 0:07:16]} Rc7 {[%emt 0:09:53]} 23. Ra2 {[%emt 0:05:34]} Rdc8 {[%emt 0:03:56]} 24. Rad2 {[%emt 0:02:08]} Rd7 {[%emt 0:07:34]} 25. Qc1 {[%emt 0:04:34]} Qf8 {[%emt 0:04:18]} 26. Qb1 {[%emt 0:03:27]} Ba4 {[%emt 0:03:34]} 27. Rc1 {[%emt 0:00:57]} Rxc1+ {[%emt 0:04:38]} 28. Qxc1 {[%emt 0:00:47]} Rc7 {[%emt 0:00:03]} 29. Qb1 {[%emt 0:01:07]} Qc8 {[%emt 0:01:15]} 30. Bf1 {[%emt 0:02:41]} Rc1 {[%emt 0:01:29]} 31. Qd3 {[%emt 0:01:59]} Be7 {[%emt 0:00:45]} 32. Kg2 {[%emt 0:01:09]} Rc3 {[%emt 0:00:20]} 33. Qa6 {[%emt 0:01:22]} Qxa6 {[%emt 0:00:57]} 34. Bxa6 {[%emt 0:00:09]} Bc6 {[%emt 0:00:12]} 35. Be2 {[%emt 0:00:54]} Rxa3 {[%emt 0:00:24]} 36. Rc2 {[%emt 0:00:21]} Bxf3+ {[%emt 0:00:59]} 37. Bxf3 Bxb4 {[%emt 0:00:22]} 38. Rc8+ {[%emt 0:00:12]} Kh7 {[%emt 0:00:11]} 39. Be4+ {[%emt 0:00:28]} g6 {[%emt 0:00:16]} 40. Rc7 {[%emt 0:00:34]} Kg7 {[%emt 0:00:28]} 41. g4 {[%emt 0:30:34]} Bd6 {[%emt 0:30:10]} 42. Rc6 {[%emt 0:01:06]} Bxf4 {[%emt 0:00:19]} 43. f3 {[%emt 0:01:14]} Ra2+ {[%emt 0:01:41]} 44. Rc2 {[%emt 0:00:56]} Rxc2+ {[%emt 0:00:00]} 45. Bxc2 {[%emt 0:00:00]} b5 {[%emt 0:00:00]} 46. h4 {[%emt 0:00:00]} Kf6 {[%emt 0:00:00]} 47. Kf2 {[%emt 0:00:00]} Ke5 {[%emt 0:00:00]} 48. Ke2 {[%emt 0:00:00]} Kd4 {[%emt 0:00:00]} 49. Bd3 {[%emt 0:00:00]} b4 {[%emt 0:00:00]} 50. Bb1 {[%emt 0:00:00]} b3 {[%emt 0:00:00]} 51. Kd1 {[%emt 0:00:00]} a5 {[%emt 0:00:00]} 52. Ke2 {[%emt 0:00:00]} a4 {[%emt 0:00:00]} 53. Kd1 {[%emt 0:00:00]} a3 {[%emt 0:00:00]} 54. Bc2 {[%emt 0:00:00]} a2 {[%emt 0:00:00]} 55. Bxb3 {[%emt 0:00:00]} a1=Q+ {[%emt 0:00:00]} 56. Kc2 {[%emt 0:00:00]} Qc1# {[%emt 0:00:00] normal} 0-1

[Event "-chT Youth Countries 2019"]
[Site "Wuerzburg"]
[Date "2019.10.03"]
[Round "3"]
[White "Woerz, Ann-Sophie"]
[Black "Henninger, Claire"]
[Result "0-1"]
[ECO "B00"]
[WhiteElo "1500"]
[BlackElo "1471"]
[Annotator "NA"]
[PlyCount "97"]
[EventDate "2019.10.02"]
[EventType "team-tourn"]
[EventRounds "7"]
[EventCountry "GER"]
[SourceTitle "playchess.com"]
[Source "ChessBase"]
[SourceQuality "1"]
[WhiteTeam "Württemberg"]
[BlackTeam "Baden 2"]
[TimeControl "40/5400+30:1800+30"]

1. e4 {[%emt 0:00:00]} d6 {[%emt 0:00:00]} 2. Bc4 {[%emt 0:00:14]} Nf6 {[%emt 0:00:00]} 3. d3 {[%emt 0:00:54]} c6 {[%emt 0:00:24]} 4. Bb3 {[%emt 0:04:27]} e5 {[%emt 0:01:26]} 5. Nf3 {[%emt 0:05:18]} Nbd7 {[%emt 0:01:55]} 6. Be3 {[%emt 0:02:59]} Be7 {[%emt 0:08:24]} 7. h3 {[%emt 0:05:06]} b6 {[%emt 0:05:11]} 8. Nbd2 {[%emt 0:03:51]} Bb7 {[%emt 0:03:24]} 9. c3 {[%emt 0:04:38]} Qc7 {[%emt 0:04:43]} 10. Qc2 {[%emt 0:02:37]} d5 {[%emt 0:07:15]} 11. d4 {[%emt 0:08:17]} dxe4 {[%emt 0:03:52]} 12. Nxe4 {[%emt 0:00:36]} Nxe4 {[%emt 0:00:57]} 13. Qxe4 {[%emt 0:00:22]} c5 {[%emt 0:01:08]} 14. d5 {[%emt 0:12:08]} O-O {[%emt 0:06:28]} 15. Rd1 {[%emt 0:11:09]} Bd6 {[%emt 0:05:17]} 16. Ng5 {[%emt 0:05:09]} Nf6 {[%emt 0:03:10]} 17. Qf5 {[%emt 0:01:47]} Bc8 {[%emt 0:06:40]} 18. Qd3 {[%emt 0:01:26]} h6 {[%emt 0:00:30]} 19. Ne4 {[%emt 0:05:36]} Nxe4 {[%emt 0:00:50]} 20. Qxe4 {[%emt 0:00:05]} f5 {[%emt 0:01:14]} 21. Qc4 {[%emt 0:05:30]} Rb8 {[%emt 0:04:50]} 22. a4 {[%emt 0:01:31]} a6 {[%emt 0:00:51]} 23. Qe2 {[%emt 0:00:38]} b5 {[%emt 0:02:12]} 24. axb5 {[%emt 0:01:23]} axb5 {[%emt 0:01:30]} 25. c4 {[%emt 0:01:26]} bxc4 {[%emt 0:03:19]} 26. Bxc4 {[%emt 0:00:33]} Bd7 {[%emt 0:03:11]} 27. f3 {[%emt 0:02:25]} e4 {[%emt 0:02:23]} 28. fxe4 {[%emt 0:00:37]} Bg3+ {[%emt 0:00:46]} 29. Bf2 {[%emt 0:02:51]} Qa5+ {[%emt 0:01:32]} 30. Qd2 {[%emt 0:01:07]} Bxf2+ {[%emt 0:04:44]} 31. Kxf2 {[%emt 0:00:37]} fxe4+ {[%emt 0:01:18]} 32. Ke3 {[%emt 0:00:40]} Qb4 {[%emt 0:04:58]} 33. Qxb4 {[%emt 0:00:22]} Rxb4 {[%emt 0:00:22]} 34. b3 {[%emt 0:00:57]} Re8 {[%emt 0:01:22]} 35. Rhf1 {[%emt 0:00:37]} Re5 {[%emt 0:02:10]} 36. d6+ {[%emt 0:02:48]} Kh7 {[%emt 0:02:17]} 37. Rf7 {[%emt 0:01:23]} Rb7 {[%emt 0:03:49]} 38. Bd5 {[%emt 0:00:51]} Kg6 {[%emt 0:03:17]} 39. Re7 {[%emt 0:01:12]} Rxe7 {[%emt 0:01:17]} 40. dxe7 {[%emt 0:00:09]} Rb8 {[%emt 0:00:09]} 41. Bxe4+ {[%emt 0:30:50]} Kf7 {[%emt 0:03:38]} 42. Rxd7 {[%emt 0:00:00]} Rxb3+ {[%emt 0:01:31]} 43. Kf4 {[%emt 0:00:00]} Rb6 {[%emt 0:05:42]} 44. Rc7 {[%emt 0:00:00]} Rf6+ {[%emt 0:02:12]} 45. Kg3 {[%emt 0:00:00]} c4 {[%emt 0:06:21]} 46. Bd5+ {[%emt 0:00:00]} Ke8 {[%emt 0:00:08]} 47. Bc6+ {[%emt 0:00:00]} Rxc6 {[%emt 0:00:14]} 48. Rxc6 {[%emt 0:00:00]} Kxe7 49. Rxc4 {[%emt 0:00:00]} 0-1

[Event "-chT Youth Countries 2019"]
[Site "Wuerzburg"]
[Date "2019.10.03"]
[Round "3.1"]
[White "Muckle, Julius"]
[Black "Fromm, Marius"]
[Result "1/2-1/2"]
[ECO "D37"]
[WhiteElo "2398"]
[BlackElo "2124"]
[Annotator "NA"]
[PlyCount "44"]
[EventDate "2019.10.02"]
[EventType "team-tourn"]
[EventRounds "7"]
[EventCountry "GER"]
[SourceTitle "playchess.com"]
[Source "ChessBase"]
[SourceQuality "1"]
[WhiteTeam "Rheinland-Pfalz"]
[BlackTeam "Mecklenburg-Vorpommern"]
[TimeControl "40/5400+30:1800+30"]

1. d4 {[%emt 0:00:00]} Nf6 {[%emt 0:00:00]} 2. c4 {[%emt 0:00:00]} e6 {[%emt 0:00:00]} 3. Nc3 {[%emt 0:00:00]} d5 {[%emt 0:00:00]} 4. Nf3 {[%emt 0:00:20]} dxc4 {[%emt 0:00:00]} 5. e3 {[%emt 0:00:17]} a6 {[%emt 0:00:07]} 6. a4 {[%emt 0:00:15]} c5 {[%emt 0:00:45]} 7. Bxc4 {[%emt 0:00:12]} Nc6 {[%emt 0:00:17]} 8. O-O {[%emt 0:00:22]} Be7 {[%emt 0:02:14]} 9. Qe2 {[%emt 0:07:44]} cxd4 {[%emt 0:00:19]} 10. Rd1 {[%emt 0:04:52]} e5 {[%emt 0:00:17]} 11. exd4 {[%emt 0:05:29]} exd4 {[%emt 0:00:06]} 12. Nxd4 {[%emt 0:06:13]} Nxd4 {[%emt 0:00:06]} 13. Qe5 {[%emt 0:00:06]} Qd6 {[%emt 0:00:13]} 14. Qxd6 {[%emt 0:02:12]} Bxd6 {[%emt 0:00:06]} 15. Rxd4 {[%emt 0:00:01]} Be5 {[%emt 0:00:09]} 16. Rd1 {[%emt 0:05:13]} O-O {[%emt 0:00:05]} 17. Bg5 {[%emt 0:05:08]} Bf5 {[%emt 0:06:07]} 18. Nd5 {[%emt 0:09:45]} Nxd5 {[%emt 0:04:24]} 19. Rxd5 {[%emt 0:00:20]} Be6 {[%emt 0:02:51]} 20. Rxe5 {[%emt 0:00:16]} Bxc4 {[%emt 0:00:06]} 21. Re7 {[%emt 0:00:28]} Bd5 {[%emt 0:01:55]} 22. b4 {[%emt 0:06:05]} Bc6 {[%emt 0:02:05] normal} 1/2-1/2

[Event "-chT Youth Countries 2019"]
[Site "Wuerzburg"]
[Date "2019.10.03"]
[Round "3.1"]
[White "Faerber, David"]
[Black "Degenhard, Simon"]
[Result "1/2-1/2"]
[ECO "E11"]
[WhiteElo "2332"]
[BlackElo "2084"]
[Annotator "ChessBase"]
[PlyCount "63"]
[EventDate "2019.10.02"]
[EventType "team-tourn"]
[EventRounds "7"]
[EventCountry "GER"]
[SourceTitle "playchess.com"]
[Source "ChessBase"]
[SourceQuality "1"]
[WhiteTeam "Baden 2"]
[BlackTeam "Württemberg"]
[TimeControl "40/5400+30:1800+30"]

1. d4 {[%emt 0:00:00]} e6 {[%emt 0:00:00]} 2. c4 {[%emt 0:00:35]} Nf6 {[%emt 0:00:22]} 3. Nf3 {[%emt 0:00:08]} Bb4+ {[%emt 0:00:23]} 4. Bd2 {[%emt 0:02:43]} c5 {[%emt 0:00:38]} 5. g3 {[%emt 0:04:25]} O-O {[%emt 0:02:12]} 6. Bg2 {[%emt 0:03:46]} d6 {[%emt 0:02:15]} 7. O-O {[%emt 0:06:45]} Nc6 {[%emt 0:02:41]} 8. a3 {[%emt 0:10:42]} Bxd2 {[%emt 0:00:34]} 9. Qxd2 {[%emt 0:00:10]} Qb6 {[%emt 0:08:28]} 10. Rd1 {[%emt 0:10:41]} Rd8 {[%emt 0:10:39]} 11. d5 {[%emt 0:21:00]} Na5 {[%emt 0:02:07]} 12. Qc2 {[%emt 0:00:53]} Qb3 {[%emt 0:03:52]} 13. Qxb3 {[%emt 0:01:18]} Nxb3 {[%emt 0:00:02]} 14. Ra2 {[%emt 0:00:07]} exd5 {[%emt 0:08:33]} 15. cxd5 {[%emt 0:00:17]} Re8 {[%emt 0:05:51]} 16. Nc3 {[%emt 0:03:16]} a6 {[%emt 0:00:53]} 17. a4 {[%emt 0:06:44]} Bf5 {[%emt 0:03:11]} 18. a5 {[%emt 0:04:37]} Re7 {[%emt 0:07:09]} 19. e3 {[%emt 0:02:22]} Rb8 {[%emt 0:02:32]} 20. Ne1 {[%emt 0:02:36]} b5 {[%emt 0:05:25]} 21. axb6 {[%emt 0:00:23]} Rxb6 {[%emt 0:00:07]} 22. Bf1 {[%emt 0:01:17]} a5 {[%emt 0:01:04]} 23. Bc4 {[%emt 0:03:37]} Reb7 {[%emt 0:03:29]} 24. f3 {[%emt 0:01:05]} Nd7 {[%emt 0:00:48]} 25. g4 {[%emt 0:04:52]} Bg6 {[%emt 0:00:31]} 26. f4 {[%emt 0:00:11]} f5 {[%emt 0:05:58]} 27. h3 {[%emt 0:03:07]} Rb4 {[%emt 0:01:46]} 28. Bxb3 {[%emt 0:02:20]} Rxb3 {[%emt 0:00:02]} 29. Rxa5 {[%emt 0:00:52]} Rxb2 {[%emt 0:00:51]} 30. Ra6 {[%emt 0:01:09]} R7b6 {[%emt 0:01:46]} 31. Rda1 {[%emt 0:00:50]} R2b3 {[%emt 0:02:31]} 32. Ra8+ {[%emt 0:01:26] normal} 1/2-1/2

[Event "-chT Youth Countries 2019"]
[Site "Wuerzburg"]
[Date "2019.10.03"]
[Round "3.1"]
[White "Herbrig, Alexander"]
[Black "Svane, Frederik"]
[Result "0-1"]
[ECO "B90"]
[WhiteElo "2295"]
[BlackElo "2360"]
[Annotator "ChessBase"]
[PlyCount "61"]
[EventDate "2019.10.02"]
[EventType "team-tourn"]
[EventRounds "7"]
[EventCountry "GER"]
[SourceTitle "playchess.com"]
[Source "ChessBase"]
[SourceQuality "1"]
[WhiteTeam "Sachsen"]
[BlackTeam "Schleswig-Holstein"]
[TimeControl "40/5400+30:1800+30"]

1. e4 {[%emt 0:00:00]} c5 {[%emt 0:00:00]} 2. Nf3 {[%emt 0:00:00]} d6 {[%emt 0:00:00]} 3. d4 {[%emt 0:00:00]} cxd4 {[%emt 0:00:00]} 4. Nxd4 {[%emt 0:00:00]} Nf6 {[%emt 0:00:00]} 5. Nc3 {[%emt 0:00:07]} a6 {[%emt 0:00:01]} 6. Be3 {[%emt 0:04:02]} e6 {[%emt 0:01:19]} 7. Bd3 {[%emt 0:02:55]} b5 {[%emt 0:06:11]} 8. a3 {[%emt 0:01:30]} Bb7 {[%emt 0:01:31]} 9. O-O {[%emt 0:00:25]} Nbd7 {[%emt 0:11:21]} 10. f4 {[%emt 0:05:16]} Rc8 {[%emt 0:04:59]} 11. Qf3 {[%emt 0:05:51]} Be7 {[%emt 0:25:01]} 12. Qg3 {[%emt 0:15:57]} O-O {[%emt 0:06:53]} 13. e5 {[%emt 0:03:26]} dxe5 {[%emt 0:00:52]} 14. fxe5 {[%emt 0:00:12]} Nh5 {[%emt 0:00:49]} 15. Qh3 {[%emt 0:05:18]} g6 {[%emt 0:00:22]} 16. Rad1 {[%emt 0:05:46]} Bc5 {[%emt 0:10:05]} 17. Be4 {[%emt 0:03:32]} Qc7 {[%emt 0:04:54]} 18. Bxb7 {[%emt 0:10:52]} Qxb7 {[%emt 0:00:04]} 19. Kh1 {[%emt 0:03:27]} Nxe5 {[%emt 0:07:36]} 20. Nxe6 {[%emt 0:04:39]} fxe6 {[%emt 0:00:19]} 21. Qxe6+ {[%emt 0:00:22]} Nf7 22. Bxc5 {[%emt 0:17:09]} Rxc5 {[%emt 0:00:35]} 23. Nd5 {[%emt 0:01:47]} Kh8 {[%emt 0:02:47]} 24. Qe4 {[%emt 0:06:30]} Ng7 {[%emt 0:00:54]} 25. Qd4 {[%emt 0:01:20]} Rc4 {[%emt 0:05:34]} 26. Qd3 {[%emt 0:00:19]} Nf5 {[%emt 0:03:04]} 27. Rxf5 {[%emt 0:02:14]} gxf5 {[%emt 0:00:06]} 28. Qxf5 {[%emt 0:00:30]} Qc6 {[%emt 0:03:02]} 29. Nf6 {[%emt 0:00:26]} Rh4 {[%emt 0:00:03]} 30. Nd7 {[%emt 0:00:22]} Rg8 {[%emt 0:00:12]} 31. Rd2 {[%emt 0:00:42] normal} 0-1

[Event "-chT Youth Countries 2019"]
[Site "Wuerzburg"]
[Date "2019.10.03"]
[Round "3.1"]
[White "Browning, Alex"]
[Black "Roseneck, Jonas"]
[Result "1/2-1/2"]
[ECO "A05"]
[WhiteElo "2291"]
[BlackElo "2402"]
[Annotator "ChessBase"]
[PlyCount "83"]
[EventDate "2019.10.02"]
[EventType "team-tourn"]
[EventRounds "7"]
[EventCountry "GER"]
[SourceTitle "playchess.com"]
[Source "ChessBase"]
[SourceQuality "1"]
[WhiteTeam "Nordrhein-Westfalen"]
[BlackTeam "Sachsen-Anhalt"]
[TimeControl "40/5400+30:1800+30"]

1. Nf3 {[%emt 0:00:00]} Nf6 {[%emt 0:00:00]} 2. g3 {[%emt 0:00:00]} g6 {[%emt 0:00:00]} 3. Bg2 {[%emt 0:00:09]} Bg7 {[%emt 0:00:05]} 4. O-O {[%emt 0:00:06]} d5 {[%emt 0:00:03]} 5. d4 {[%emt 0:00:11]} O-O {[%emt 0:00:06]} 6. c4 {[%emt 0:00:08]} dxc4 {[%emt 0:00:04]} 7. Na3 {[%emt 0:00:10]} c3 {[%emt 0:00:36]} 8. bxc3 {[%emt 0:00:08]} c5 {[%emt 0:00:03]} 9. Re1 {[%emt 0:01:45]} Nc6 {[%emt 0:05:54]} 10. Bb2 {[%emt 0:02:30]} Qb6 {[%emt 0:25:52]} 11. Nc4 {[%emt 0:00:38]} Qa6 {[%emt 0:07:22]} 12. Ncd2 {[%emt 0:00:33]} Nd5 {[%emt 0:17:04]} 13. e4 {[%emt 0:05:57]} Nb6 {[%emt 0:00:05]} 14. a4 {[%emt 0:16:35]} cxd4 {[%emt 0:00:09]} 15. cxd4 {[%emt 0:03:02]} Bg4 {[%emt 0:05:39]} 16. h3 {[%emt 0:07:14]} Nc4 {[%emt 0:05:14]} 17. Nxc4 {[%emt 0:03:13]} Bxf3 {[%emt 0:00:04]} 18. Bxf3 {[%emt 0:03:13]} Qxc4 {[%emt 0:00:02]} 19. Rc1 {[%emt 0:02:13]} Qa6 {[%emt 0:05:32]} 20. e5 {[%emt 0:05:00]} Rfd8 {[%emt 0:06:21]} 21. d5 {[%emt 0:01:23]} Nb4 {[%emt 0:01:27]} 22. Be4 {[%emt 0:03:23]} Nxd5 {[%emt 0:03:34]} 23. Bxd5 {[%emt 0:06:01]} e6 {[%emt 0:00:05]} 24. Qf3 {[%emt 0:02:05]} Rxd5 {[%emt 0:01:34]} 25. Rc7 {[%emt 0:00:15]} Rf8 {[%emt 0:00:03]} 26. Ba3 {[%emt 0:00:09]} Qa5 {[%emt 0:05:49]} 27. Rec1 {[%emt 0:02:11]} Bxe5 {[%emt 0:00:01]} 28. Rxb7 {[%emt 0:05:56]} Bd6 {[%emt 0:01:38]} 29. Bxd6 {[%emt 0:00:28]} Rxd6 {[%emt 0:00:00]} 30. Rc8 {[%emt 0:00:29]} Rdd8 {[%emt 0:02:28]} 31. Rxd8 Qxd8 {[%emt 0:00:01]} 32. Rxa7 {[%emt 0:00:26]} Qd4 {[%emt 0:00:03]} 33. Ra8 {[%emt 0:01:16]} Rxa8 {[%emt 0:03:50]} 34. Qxa8+ Kg7 35. a5 {[%emt 0:01:09]} e5 {[%emt 0:00:01]} 36. Qa6 {[%emt 0:00:13]} e4 {[%emt 0:01:37]} 37. Qb6 {[%emt 0:00:13]} Qd1+ {[%emt 0:01:07]} 38. Kh2 {[%emt 0:00:28]} Qe2 {[%emt 0:00:02]} 39. Qd4+ {[%emt 0:01:24]} Kg8 {[%emt 0:00:19]} 40. h4 {[%emt 0:00:28]} Qa2 {[%emt 0:01:39]} 41. Qd8+ {[%emt 0:31:38]} Kg7 {[%emt 0:30:09]} 42. Kg1 {[%emt 0:00:12] normal} 1/2-1/2